fUST/lending_fUST_20250625
["ID","MTS","AMOUNT","RATE_DAILY","PERIOD"]
[367556676,1750853449579,-460.0,0.00017328,2]
[367556677,1750853449590,-460.0,0.00017328,2]
[367556678,1750853449601,-460.0,0.00017328,2]
[367556679,1750853449612,-423.27,0.00017328,2]
[367556680,1750853449623,-460.0,0.00017328,2]
[367556681,1750853449632,-460.0,0.00017328,2]
[367556682,1750853449646,-460.0,0.00017328,2]
[367556683,1750853449655,-460.0,0.00017328,2]
[367556684,1750853449665,-460.0,0.00017328,2]
[367556685,1750853449674,-457.03,0.00017328,2]
[367556686,1750853449684,-460.0,0.00017328,2]
[367556687,1750853449693,-460.0,0.00017328,2]
[367556688,1750853449703,-460.0,0.00017328,2]
[367556689,1750853449713,-460.0,0.00017328,2]
[367556690,1750853449722,-151.0,0.00017328,2]
[367556691,1750853449731,-785.78,0.00017328,2]
[367556692,1750853449741,-460.0,0.00017328,2]
[367556693,1750853449751,-460.0,0.00017328,2]
[367556694,1750853449761,-460.0,0.00017328,2]
[367556695,1750853449770,-341.28527495,0.00017328,2]
[367556696,1750853449779,-460.0,0.00017328,2]
[367556697,1750853449788,-570.31,0.00017328,2]
[367556698,1750853449797,-460.0,0.00017328,2]
[367556699,1750853449806,-576.19,0.00017328,2]
[367556700,1750853449815,-460.0,0.00017328,2]
[367556701,1750853449825,-460.0,0.00017328,2]
[367556702,1750853449834,-4575.74,0.00017328,2]
[367556703,1750853449843,-460.0,0.00017328,2]
[367556704,1750853449853,-460.0,0.00017328,2]
[367556705,1750853449863,-460.0,0.00017328,2]
[367556706,1750853449873,-368.373694,0.00017328,2]
[367556707,1750853449882,-460.0,0.00017328,2]
[367556708,1750853449892,-368.373694,0.00017328,2]
[367556709,1750853449902,-460.0,0.00017328,2]
[367556710,1750853449911,-410.16921596,0.00017328,2]
[367556711,1750853449921,-460.0,0.00017328,2]
[367556712,1750853449931,-299.983382,0.00017328,2]
[367556713,1750853449940,-882.47,0.00017328,2]
[367556714,1750853449949,-481.36587145,0.00017328,2]
[367556715,1750853449959,-460.0,0.00017328,2]
[367556716,1750853449969,-460.0,0.00017328,2]
[367556717,1750853449978,-844.11,0.00017328,2]
[367556718,1750853449987,-369.71789858,0.00017328,2]
[367556719,1750853449996,-460.0,0.00017328,2]
[367556720,1750853450006,-430.0,0.00017328,2]
[367556721,1750853450015,-460.0,0.00017328,2]
[367556722,1750853450025,-4869.53,0.00017328,2]
[367556723,1750853450035,-460.0,0.00017328,2]
[367556724,1750853450044,-460.0,0.00017328,2]
[367556725,1750853450054,-460.0,0.00017328,2]
[367556726,1750853450063,-460.0,0.00017328,2]
[367556727,1750853450073,-460.0,0.00017328,2]
[367556728,1750853450083,-353.49065335,0.00017328,2]
[367556729,1750853450092,-460.0,0.00017328,2]
[367556730,1750853450100,-497.22629364,0.00017328,2]
[367556731,1750853450110,-460.0,0.00017328,2]
[367556732,1750853450122,-151.0,0.00017328,2]
[367556733,1750853450131,-460.0,0.00017328,2]
[367556734,1750853450140,-460.0,0.00017328,2]
[367556735,1750853450150,-151.0,0.00017328,2]
[367556736,1750853450159,-460.0,0.00017328,2]
[367556737,1750853450168,-460.0,0.00017328,2]
[367556738,1750853450177,-460.0,0.00017328,2]
[367556739,1750853450186,-500.0,0.00017328,2]
[367556740,1750853450195,-154.743288,0.00017328,2]
[367556741,1750853450204,-460.0,0.00017328,2]
[367556742,1750853450214,-151.0,0.00017328,2]
[367556743,1750853450223,-154.743288,0.00017328,2]
[367556744,1750853450232,-541.05,0.00017328,2]
[367556745,1750853450242,-460.0,0.00017328,2]
[367556746,1750853450251,-460.0,0.00017328,2]
[367556747,1750853450261,-156.592492,0.00017328,2]
[367556748,1750853450270,-2293.61,0.00017328,2]
[367556749,1750853450279,-151.0,0.00017328,2]
[367556750,1750853450288,-460.0,0.00017328,2]
[367556751,1750853450297,-151.0,0.00017328,2]
[367556752,1750853450306,-460.0,0.00017328,2]
[367556753,1750853450315,-460.0,0.00017328,2]
[367556754,1750853450329,-460.0091802,0.00017328,2]
[367556755,1750853450338,-460.0,0.00017328,2]
[367556756,1750853450347,-460.0,0.00017328,2]
[367556757,1750853450356,-322.15041094,0.00017329,2]
[367556758,1750853450368,-151.0,0.00017329,2]
[367556759,1750853450377,-151.0,0.00017329,2]
[367556760,1750853450386,-151.0,0.00017329,2]
[367556761,1750853450395,-151.0,0.00017329,2]
[367556762,1750853450405,-151.0,0.00017329,2]
[367556763,1750853450414,-588.21,0.00017329,2]
[367556764,1750853450423,-460.0,0.00017329,2]
[367556765,1750853450432,-582.32,0.00017329,2]
[367556766,1750853450441,-618.04,0.00017329,2]
[367556767,1750853450450,-232.115281,0.00017329,2]
[367556768,1750853450460,-232.115281,0.00017329,2]
[367556769,1750853450469,-183.702247,0.00017329,2]
[367556770,1750853450478,-183.702247,0.00017329,2]
[367556771,1750853450487,-460.0,0.00017329,2]
[367556772,1750853450496,-2654.61,0.00017329,2]
[367556773,1750853450505,-264.072463,0.00017329,2]
[367556774,1750853450514,-264.072463,0.00017329,2]
[367556775,1750853450524,-460.0,0.00017329,2]
[367556776,1750853450535,-2077.28,0.00017329,2]
[367556777,1750853450545,-460.0,0.00017329,2]
[367556778,1750853450557,-1737.61,0.00017329,2]
[367556779,1750853450568,-460.0,0.00017329,2]
[367556780,1750853450579,-151.0,0.00017329,2]
[367556781,1750853450591,-151.0,0.00017329,2]
[367556782,1750853450602,-5429.04,0.00017329,2]
[367556783,1750853450615,-1878.65,0.00017329,2]
[367556784,1750853450624,-1443.0,0.00017329,2]
[367556785,1750853450633,-207.922743,0.00017329,2]
[367556786,1750853450641,-460.0,0.00017329,2]
[367556787,1750853450650,-1131.81,0.00017329,2]
[367556788,1750853450659,-207.922743,0.00017329,2]
[367556789,1750853450669,-460.0,0.00017329,2]
[367556790,1750853450678,-460.0,0.0001733,2]
[367556791,1750853450687,-460.0,0.0001733,2]
[367556792,1750853450696,-342.76,0.0001733,2]
[367556793,1750853450706,-460.0,0.0001733,2]
[367556794,1750853450715,-436.79,0.0001733,2]
[367556795,1750853450724,-417.25859833,0.0001733,2]
[367556796,1750853450732,-159.84,0.0001733,2]
[367556797,1750853450741,-460.0,0.0001733,2]
[367556798,1750853450750,-460.0,0.0001733,2]
[367556799,1750853450759,-475.32,0.0001733,2]
[367556800,1750853450768,-460.0,0.0001733,2]
[367556801,1750853450778,-460.0,0.0001733,2]
[367556802,1750853450787,-460.0,0.0001733,2]
[367556803,1750853450796,-460.0,0.0001733,2]
[367556804,1750853450806,-178.34,0.0001733,2]
[367556805,1750853450814,-460.0,0.0001733,2]
[367556806,1750853450823,-460.0,0.0001733,2]
[367556807,1750853450832,-404.008194,0.0001733,2]
[367556808,1750853450841,-404.008194,0.0001733,2]
[367556809,1750853450853,-214.539556,0.0001733,2]
[367556810,1750853450862,-214.539556,0.0001733,2]
[367556811,1750853450871,-151.0,0.0001733,2]
[367556812,1750853450880,-460.0,0.00017331,2]
[367556813,1750853450889,-480.9,0.00017331,2]
[367556814,1750853450899,-370.0,0.00017331,2]
[367556815,1750853450908,-460.0,0.00017331,2]
[367556816,1750853450917,-306.50088308,0.00017331,2]
[367556817,1750853450926,-460.0,0.00017331,2]
[367556818,1750853450935,-460.0,0.00017331,2]
[367556819,1750853450945,-460.0,0.00017331,2]
[367556820,1750853450954,-460.0,0.00017331,2]
[367556821,1750853450963,-460.0,0.00017331,2]
[367556822,1750853450972,-460.0,0.00017331,2]
[367556823,1750853450981,-603.78,0.00017331,2]
[367556824,1750853450990,-460.0,0.00017331,2]
[367556825,1750853450999,-460.0,0.00017331,2]
[367556826,1750853451008,-460.0,0.00017331,2]
[367556827,1750853451018,-257.14,0.00017331,2]
[367556828,1750853451027,-460.0,0.00017331,2]
[367556829,1750853451036,-460.0,0.00017331,2]
[367556830,1750853451045,-460.0,0.00017331,2]
[367556831,1750853451054,-460.0,0.00017331,2]
[367556832,1750853451064,-460.0,0.00017331,2]
[367556833,1750853451073,-460.0,0.00017331,2]
[367556834,1750853451082,-460.0,0.00017331,2]
[367556835,1750853451091,-881.44,0.00017331,2]
[367556836,1750853451100,-460.0,0.00017331,2]
[367556837,1750853451110,-151.0,0.00017331,2]
[367556838,1750853451119,-460.0,0.00017331,2]
[367556839,1750853451128,-460.0,0.00017331,2]
[367556840,1750853451137,-151.0,0.00017331,2]
[367556841,1750853451146,-151.0,0.00017331,2]
[367556842,1750853451155,-223.618731,0.00017331,2]
[367556843,1750853451164,-460.0,0.00017331,2]
[367556844,1750853451173,-1344.44478406,0.00017357,2]
[367556845,1750853451182,-1000.0,0.0001738,2]
[367556846,1750853451192,-151.0,0.000174,2]
[367556847,1750853451200,-1888.21926,0.000174,2]
[367556848,1750853451210,-1888.21926,0.000174,2]
[367556849,1750853451219,-151.0,0.000174,2]
[367556850,1750853451228,-368.373694,0.000174,2]
[367556851,1750853451237,-368.373694,0.000174,2]
[367556852,1750853451247,-7226.84719651,0.000174,2]
[367556853,1750853451255,-500.0,0.00017405,2]
[367556854,1750853451264,-500.0,0.00017405,2]
[367556855,1750853451273,-500.0,0.00017407,2]
[367556856,1750853451282,-500.0,0.00017407,2]
[367556857,1750853451291,-334.12987993,0.00017421,2]
[367556858,1750853451300,-500.0,0.00017423,2]
[367556859,1750853451309,-500.65624776,0.00017423,2]
[367556860,1750853451318,-500.0,0.00017423,2]
[367556861,1750853451332,-500.0,0.00017423,2]
[367556862,1750853451342,-500.0,0.00017423,2]
[367556863,1750853451351,-500.0,0.00017427,2]
[367556864,1750853451359,-500.0,0.00017427,2]
[367556865,1750853451371,-500.0,0.00017427,2]
[367556866,1750853451380,-500.0,0.00017427,2]
[367556867,1750853451389,-500.0,0.00017427,2]
[367556868,1750853451399,-151.0,0.00017428,2]
[367556869,1750853451408,-151.0,0.00017428,2]
[367556870,1750853451418,-505.5347495,0.00017429,2]
[367556871,1750853451427,-500.0,0.00017429,2]
[367556872,1750853451435,-592.85541307,0.00017429,2]
[367556873,1750853451444,-500.0,0.0001743,2]
[367556874,1750853451452,-504.06017893,0.00017439,2]
[367556875,1750853451461,-156.83182083,0.00017439,2]
[367556876,1750853451470,-500.0,0.00017439,2]
[367556877,1750853451478,-501.47952994,0.00017439,2]
[367556878,1750853451487,-500.0,0.00017439,2]
[367556879,1750853451496,-500.0,0.00017439,2]
[367556880,1750853451505,-500.0,0.00017439,2]
[367556881,1750853451515,-503.79810707,0.00017439,2]
[367556882,1750853451524,-448.3631982,0.00017439,2]
[367556883,1750853451533,-500.0,0.00017441,2]
[367556884,1750853451543,-500.0,0.00017441,2]
[367556885,1750853451553,-500.0,0.00017441,2]
[367556886,1750853451562,-500.0,0.00017441,2]
[367556887,1750853451571,-500.0,0.00017441,2]
[367556888,1750853451581,-7226.84719651,0.00017452,2]
[367556889,1750853451590,-500.0,0.00017459,2]
[367556890,1750853451602,-500.0,0.00017471,2]
[367556891,1750853451713,-500.0,0.00017493,2]
[367556892,1750853451723,-151.0,0.00017499,2]
[367556893,1750853451733,-151.0,0.00017499,2]
[367556894,1750853451742,-154.743288,0.00017499,2]
[367556895,1750853451751,-151.0,0.00017499,2]
[367556896,1750853451760,-154.743288,0.00017499,2]
[367556897,1750853451770,-1344.44478406,0.00017582,2]
[367556898,1750853451780,-151.0,0.000176,2]
[367556899,1750853451789,-460.0,0.000176,2]
[367556900,1750853451798,-460.0,0.000176,2]
[367556901,1750853451807,-460.0,0.000176,2]
[367556902,1750853451817,-460.0,0.000176,2]
[367556903,1750853451827,-460.0,0.000176,2]
[367556904,1750853451836,-1482.13,0.000176,2]
[367556905,1750853451845,-2765.63,0.000176,2]
[367556906,1750853451854,-460.0,0.000176,2]
[367556907,1750853451864,-3064.74,0.000176,2]
[367556908,1750853451873,-460.0,0.000176,2]
[367556909,1750853451882,-460.0,0.000176,2]
[367556910,1750853451892,-460.0,0.000176,2]
[367556911,1750853451901,-460.0,0.000176,2]
[367556912,1750853451911,-2702.51,0.000176,2]
[367556913,1750853451920,-496.72,0.000176,2]
[367556914,1750853451929,-403.80310875,0.00017601,2]
[367556915,1750853451939,-206.3,0.00017601,2]
[367556916,1750853451948,-1590.6,0.00017601,2]
[367556917,1750853451957,-2531.11,0.00017601,2]
[367556918,1750853451966,-460.0,0.00017601,2]
[367556919,1750853451976,-460.0,0.00017601,2]
[367556920,1750853451985,-999.7,0.00017601,2]
[367556921,1750853451994,-1646.41,0.00017601,2]
[367556922,1750853452004,-471.74,0.00017601,2]
[367556923,1750853452014,-460.0,0.00017601,2]
[367556924,1750853452023,-460.0,0.00017601,2]
[367556925,1750853452033,-460.0,0.00017601,2]
[367556926,1750853452042,-460.0,0.00017601,2]
[367556927,1750853452051,-153.98,0.00017601,2]
[367556928,1750853452061,-160.35931239,0.00017601,2]
[367556929,1750853452070,-585.17,0.00017601,2]
[367556930,1750853452079,-460.0,0.00017601,2]
[367556931,1750853452089,-828.45,0.00017601,2]
[367556932,1750853452098,-460.0,0.00017601,2]
[367556933,1750853452108,-460.0,0.00017601,2]
[367556934,1750853452118,-460.0,0.00017601,2]
[367556935,1750853452127,-427.64,0.00017602,2]
[367556936,1750853452137,-396.02,0.00017602,2]
[367556937,1750853452146,-222.01259041,0.00017602,2]
[367556938,1750853452155,-151.0,0.00017602,2]
[367556939,1750853452164,-151.0,0.00017602,2]
[367556940,1750853452173,-151.0,0.00017602,2]
[367556941,1750853452183,-151.0,0.00017602,2]
[367556942,1750853452192,-460.0,0.00017602,2]
[367556943,1750853452202,-460.0,0.00017602,2]
[367556944,1750853452211,-151.0,0.00017602,2]
[367556945,1750853452221,-151.0,0.00017602,2]
[367556946,1750853452231,-460.0,0.00017602,2]
[367556947,1750853452240,-460.0,0.00017602,2]
[367556948,1750853452250,-460.0,0.00017602,2]
[367556949,1750853452259,-263.452831,0.00017602,2]
[367556950,1750853452268,-460.0,0.00017602,2]
[367556951,1750853452278,-460.0,0.00017602,2]
[367556952,1750853452288,-383.85952,0.00017602,2]
[367556953,1750853452297,-383.85952,0.00017602,2]
[367556954,1750853452307,-460.0,0.00017602,2]
[367556955,1750853452316,-151.0,0.00017602,2]
[367556956,1750853452329,-460.0,0.00017602,2]
[367556957,1750853452338,-443.0,0.00017602,2]
[367556958,1750853452348,-460.0,0.00017602,2]
[367556959,1750853452357,-460.0,0.00017602,2]
[367556960,1750853452366,-151.0,0.00017602,2]
[367556961,1750853452375,-460.0,0.00017602,2]
[367556962,1750853452385,-460.0,0.00017602,2]
[367556963,1750853452394,-151.0,0.00017602,2]
[367556964,1750853452403,-600.94,0.00017602,2]
[367556965,1750853452413,-151.0,0.00017602,2]
[367556966,1750853452422,-460.0,0.00017602,2]
[367556967,1750853452431,-151.0,0.00017602,2]
[367556968,1750853452441,-460.0,0.00017602,2]
[367556969,1750853452450,-151.0,0.00017602,2]
[367556970,1750853452459,-460.0,0.00017602,2]
[367556971,1750853452468,-169.46,0.00017602,2]
[367556972,1750853452478,-460.0,0.00017602,2]
[367556973,1750853452488,-664.93,0.00017602,2]
[367556974,1750853452497,-392.67985576,0.00017602,2]
[367556975,1750853452507,-460.0,0.00017602,2]
[367556976,1750853452516,-432.18,0.00017602,2]
[367556977,1750853452526,-460.0,0.00017602,2]
[367556978,1750853452535,-460.0,0.00017602,2]
[367556979,1750853452544,-203.61,0.00017602,2]
[367556980,1750853452553,-317.59,0.00017602,2]
[367556981,1750853452563,-785.78,0.00017602,2]
[367556982,1750853452571,-460.0,0.00017602,2]
[367556983,1750853452581,-460.0,0.00017602,2]
[367556984,1750853452591,-232.115281,0.00017602,2]
[367556985,1750853452600,-570.31,0.00017602,2]
[367556986,1750853452609,-232.115281,0.00017602,2]
[367556987,1750853452619,-460.0,0.00017602,2]
[367556988,1750853452628,-183.702247,0.00017602,2]
[367556989,1750853452637,-183.702247,0.00017602,2]
[367556990,1750853452647,-4575.74,0.00017602,2]
[367556991,1750853452656,-460.0,0.00017602,2]
[367556992,1750853452665,-264.072463,0.00017602,2]
[367556993,1750853452674,-264.072463,0.00017602,2]
[367556994,1750853452683,-460.0,0.00017602,2]
[367556995,1750853452692,-460.0,0.00017602,2]
[367556996,1750853452702,-882.47,0.00017602,2]
[367556997,1750853452711,-460.0,0.00017602,2]
[367556998,1750853452720,-151.0,0.00017602,2]
[367556999,1750853452730,-460.0,0.00017602,2]
[367557000,1750853452739,-844.11,0.00017602,2]
[367557001,1750853452748,-404.008194,0.00017602,2]
[367557002,1750853452758,-404.008194,0.00017602,2]
[367557003,1750853452767,-460.0,0.00017602,2]
[367557004,1750853452777,-151.0,0.00017602,2]
[367557005,1750853452786,-460.0,0.00017602,2]
[367557006,1750853452795,-4869.53,0.00017602,2]
[367557007,1750853452804,-460.0,0.00017602,2]
[367557008,1750853452813,-460.0,0.00017602,2]
[367557009,1750853452822,-460.0,0.00017602,2]
[367557010,1750853452831,-460.0,0.00017602,2]
[367557011,1750853452840,-214.539556,0.00017602,2]
[367557012,1750853452850,-460.0,0.00017602,2]
[367557013,1750853452859,-214.539556,0.00017602,2]
[367557014,1750853452869,-460.0,0.00017602,2]
[367557015,1750853452878,-460.0,0.00017602,2]
[367557016,1750853452887,-419.08,0.00017602,2]
[367557017,1750853452897,-460.0,0.00017602,2]
[367557018,1750853452907,-151.0,0.00017602,2]
[367557019,1750853452916,-460.0,0.00017602,2]
[367557020,1750853452926,-460.0,0.00017602,2]
[367557021,1750853452936,-207.922743,0.00017602,2]
[367557022,1750853452945,-460.0,0.00017602,2]
[367557023,1750853452955,-207.922743,0.00017602,2]
[367557024,1750853452964,-265.25,0.00017602,2]
[367557025,1750853452974,-460.0,0.00017602,2]
[367557026,1750853452983,-541.05,0.00017602,2]
[367557027,1750853452992,-460.0,0.00017602,2]
[367557028,1750853453001,-2293.61,0.00017602,2]
[367557029,1750853453011,-594.5,0.00017602,2]
[367557030,1750853453020,-460.0,0.00017602,2]
[367557031,1750853453029,-460.0,0.00017602,2]
[367557032,1750853453039,-460.0,0.00017602,2]
[367557033,1750853453049,-460.0,0.00017602,2]
[367557034,1750853453058,-588.21,0.00017603,2]
[367557035,1750853453067,-460.0,0.00017603,2]
[367557036,1750853453085,-582.32,0.00017603,2]
[367557037,1750853453096,-618.04,0.00017603,2]
[367557038,1750853453106,-460.0,0.00017603,2]
[367557039,1750853453115,-2654.61,0.00017603,2]
[367557040,1750853453125,-460.0,0.00017603,2]
[367557041,1750853453135,-2077.28,0.00017603,2]
[367557042,1750853453144,-460.0,0.00017603,2]
[367557043,1750853453154,-1737.61,0.00017603,2]
[367557044,1750853453163,-460.0,0.00017603,2]
[367557045,1750853453174,-5429.04,0.00017603,2]
[367557046,1750853453183,-1878.65,0.00017603,2]
[367557047,1750853453193,-1443.0,0.00017603,2]
[367557048,1750853453202,-460.0,0.00017603,2]
[367557049,1750853453212,-1131.81,0.00017603,2]
[367557050,1750853453221,-460.0,0.00017603,2]
[367557051,1750853453231,-183.2,0.00017604,2]
[367557052,1750853453241,-460.0,0.00017604,2]
[367557053,1750853453250,-460.0,0.00017604,2]
[367557054,1750853453259,-460.0,0.00017604,2]
[367557055,1750853453269,-580.06,0.00017604,2]
[367557056,1750853453278,-475.32,0.00017604,2]
[367557057,1750853453288,-460.0,0.00017604,2]
[367557058,1750853453297,-460.0,0.00017604,2]
[367557059,1750853453306,-460.0,0.00017604,2]
[367557060,1750853453316,-460.0,0.00017604,2]
[367557061,1750853453328,-375.6701882,0.00017604,2]
[367557062,1750853453338,-460.0,0.00017604,2]
[367557063,1750853453347,-151.0,0.00017604,2]
[367557064,1750853453356,-151.0,0.00017604,2]
[367557065,1750853453367,-460.0,0.00017605,2]
[367557066,1750853453376,-460.0,0.00017605,2]
[367557067,1750853453386,-460.0,0.00017605,2]
[367557068,1750853453395,-460.0,0.00017605,2]
[367557069,1750853453406,-227.85,0.00017605,2]
[367557070,1750853453415,-321.38026549,0.00017605,2]
[367557071,1750853453425,-357.24,0.00017605,2]
[367557072,1750853453435,-460.0,0.00017605,2]
[367557073,1750853453444,-460.0,0.00017605,2]
[367557074,1750853453454,-460.0,0.00017605,2]
[367557075,1750853453463,-460.0,0.00017605,2]
[367557076,1750853453472,-170.876532,0.00017605,2]
[367557077,1750853453481,-219.78259,0.00017605,2]
[367557078,1750853453491,-170.876532,0.00017605,2]
[367557079,1750853453500,-219.78259,0.00017605,2]
[367557080,1750853453510,-460.0,0.00017605,2]
[367557081,1750853453519,-460.0,0.00017605,2]
[367557082,1750853453528,-167.28,0.00017605,2]
[367557083,1750853453538,-881.44,0.00017605,2]
[367557084,1750853453547,-460.0,0.00017605,2]
[367557085,1750853453556,-151.0,0.00017605,2]
[367557086,1750853453566,-594.29176712,0.00017605,2]
[367557087,1750853453576,-528.82711,0.00017605,2]
[367557088,1750853453585,-528.82711,0.00017605,2]
[367557089,1750853453594,-460.0,0.00017605,2]
[367557090,1750853453603,-151.0,0.00017605,2]
[367557091,1750853453612,-151.0,0.00017605,2]
[367557092,1750853453622,-263.05996908,0.00017605,2]
[367557093,1750853453632,-151.0,0.00017605,2]
[367557094,1750853453641,-368.373694,0.00017605,2]
[367557095,1750853453780,-368.373694,0.00017605,2]
[367557096,1750853453790,-151.0,0.00017606,2]
[367557097,1750853453799,-151.729213,0.00017606,2]
[367557098,1750853453808,-151.0,0.00017606,2]
[367557099,1750853453817,-151.0,0.00017606,2]
[367557100,1750853453827,-151.0,0.00017606,2]
[367557101,1750853453837,-151.0,0.00017606,2]
[367557102,1750853453846,-439.612469,0.00017606,2]
[367557103,1750853453856,-439.612469,0.00017606,2]
[367557104,1750853453866,-151.320744,0.00017606,2]
[367557105,1750853453875,-301.74715396,0.00017643,2]
[367557106,1750853453884,-836.86812089,0.00017671,2]
[367557107,1750853453893,-230.22714675,0.00017671,2]
[367557108,1750853453903,-12558.06783089,0.00017671,2]
[367557109,1750853453912,-524.21181985,0.00017671,2]
[367557110,1750853453922,-425.18553072,0.00017671,2]
[367557111,1750853453931,-213.69531788,0.00017671,2]
[367557112,1750853453940,-160.0,0.00017671,2]
[367557113,1750853453949,-160.0,0.00017671,2]
[367557114,1750853453959,-846.80634355,0.00017671,2]
[367557115,1750853453968,-160.0,0.00017671,2]
[367557116,1750853453977,-160.0,0.00017671,2]
[367557117,1750853453986,-160.0,0.00017671,2]
[367557118,1750853453995,-160.0,0.00017674,2]
[367557119,1750853454005,-151.0,0.00017682,2]
[367557120,1750853454015,-151.0,0.00017682,2]
[367557121,1750853454024,-151.0,0.00017682,2]
[367557122,1750853454033,-151.0,0.00017682,2]
[367557123,1750853454042,-151.0,0.00017682,2]
[367557124,1750853454051,-151.0,0.00017682,2]
[367557125,1750853454061,-151.0,0.00017682,2]
[367557126,1750853454070,-263.452831,0.00017682,2]
[367557127,1750853454079,-383.85952,0.00017682,2]
[367557128,1750853454088,-383.85952,0.00017682,2]
[367557129,1750853454097,-151.0,0.00017682,2]
[367557130,1750853454107,-151.0,0.00017682,2]
[367557131,1750853454117,-1888.21926,0.00017682,2]
[367557132,1750853454126,-1888.21926,0.00017682,2]
[367557133,1750853454135,-151.0,0.00017682,2]
[367557134,1750853454144,-151.0,0.00017682,2]
[367557135,1750853454153,-281.276653,0.00017682,2]
[367557136,1750853454162,-232.115281,0.00017682,2]
[367557137,1750853454171,-232.115281,0.00017682,2]
[367557138,1750853454180,-183.702247,0.00017682,2]
[367557139,1750853454190,-183.702247,0.00017682,2]
[367557140,1750853454199,-264.072463,0.00017682,2]
[367557141,1750853454208,-264.072463,0.00017682,2]
[367557142,1750853454218,-151.0,0.00017682,2]
[367557143,1750853454227,-404.008194,0.00017682,2]
[367557144,1750853454236,-404.008194,0.00017682,2]
[367557145,1750853454245,-151.0,0.00017682,2]
[367557146,1750853454254,-214.539556,0.00017682,2]
[367557147,1750853454263,-214.539556,0.00017682,2]
[367557148,1750853454273,-151.0,0.00017682,2]
[367557149,1750853454282,-155.648598,0.00017682,2]
[367557150,1750853454292,-151.0,0.00017682,2]
[367557151,1750853454301,-207.922743,0.00017682,2]
[367557152,1750853454310,-207.922743,0.00017682,2]
[367557153,1750853454319,-154.743288,0.00017682,2]
[367557154,1750853454333,-151.0,0.00017682,2]
[367557155,1750853454342,-154.743288,0.00017682,2]
[367557156,1750853454351,-207.4,0.00017682,2]
[367557157,1750853454360,-5000.0,0.00017682,2]
[367557158,1750853454369,-500.0,0.00017682,2]
[367557159,1750853454379,-500.0,0.00017682,2]
[367557160,1750853454388,-500.0,0.00017682,2]
[367557161,1750853454397,-500.0,0.00017682,2]
[367557162,1750853454407,-500.0,0.00017682,2]
[367557163,1750853454416,-500.0,0.00017682,2]
[367557164,1750853454425,-450.13074074,0.00017682,2]
[367557165,1750853454435,-500.0,0.00017682,2]
[367557166,1750853454445,-500.0,0.00017682,2]
[367557167,1750853454455,-500.0,0.00017682,2]
[367557168,1750853454464,-500.0,0.00017682,2]
[367557169,1750853454474,-500.0,0.00017682,2]
[367557170,1750853454483,-500.0,0.00017682,2]
[367557171,1750853454493,-500.0,0.00017682,2]
[367557172,1750853454502,-500.0,0.00017682,2]
[367557173,1750853454511,-500.0,0.00017682,2]
[367557174,1750853454520,-500.0,0.00017682,2]
[367557175,1750853454529,-500.0,0.00017682,2]